Workbook

Sheet Лист1
B1: Игрок 1 | C1: Игрок 2 | D1: Сумма | E1: базовое
A2: Стек | B2: 55 | C2: 49 | D2: =B2+C2 -> 104 | G2: Такие ячейки нужно заполнить самостоятельно
A3: Баунти | B3: 662 | C3: 157 | D3: =C3+B3 -> 819 | E3: 15 | G3: В таких ячейках справедливые выплаты
B4: 1 место | C4: 2 место
A5: Призовые | B5: 1063 | C5: 771 | D5: =C5+B5 -> 1834
A7: Всего осталось разыграть денег | D7: =D5+D3 -> 2653
A8: Без гарантии за второе место | D8: =D7-2*C5 -> 1111
A9: ICM | B9: =B2/D2*D8 -> 587.5480769 | C9: =C2/D2*D8 -> 523.4519231
A10: С выплатами за 2 | B10: =B9+C5 -> 1358.548077 | C10: =C9+C5 -> 1294.451923
A12: Выплатить сразу | B12: =B9-C9 -> 64.09615385 | C12: 0 | G12: Выплатить 1 и 2 игроку соответственно
A13: Выплаты за места | B13: =(D5-B12)/2-D3/2 -> 475.4519231 | C13: =(D5-B12)/2+D3/2 -> 1294.451923 | G13: Остальной призовой фонд разделить как указано здесь (меньшее число -- за первое место, большее число -- за второе место)
A14: Для контроля вычислений
A15: Если выиграет 1 | B15: =B13+B12+D3 -> 1358.548077 | C15: =C13+C12 -> 1294.451923
D16: Если числа строкой выше и ниже совпадают, значит все сработало правильно
A17: Если выиграет 2 | B17: =C13+B12 -> 1358.548077 | C17: =B13+D3 -> 1294.451923
A20: Как это будет выглядеть в клиенте
A21: Если выиграет 1 | B21: Игрок 1 | C21: Игрок 2
A22: Призовые | B22: =B12+B13 -> 539.5480769 | C22: =C13 -> 1294.451923
A23: Баунти | B23: =B3+C3/2 -> 740.5 | C23: =C3 -> 157
A24: Итого | B24: =B23*2-E3+B22 -> 2005.548077 | C24: =C22+C23-E3 -> 1436.451923
A26: Если выиграет 2 | B26: Игрок 1 | C26: Игрок 2
A27: Призовые | B27: =C13+B12 -> 1358.548077 | C27: =B13 -> 475.4519231
A28: Баунти | B28: =B3 -> 662 | C28: =C3+B3/2 -> 488
A29: Итого | B29: =B27+B28-E3 -> 2005.548077 | C29: =C28*2-E3+C27 -> 1436.451923

Sheet Лист2

Sheet Лист3
